[Event "Late-Titled-Tuesday-Blitz-January-23-2024"]
[Site "Chess.com"]
[Date "2024.01.23"]
[Round "11"]
[White "Kostukov_Alex"]
[Black "EsmeraldasAnderson03"]
[Result "0-1"]
[WhiteElo "2306"]
[BlackElo "2423"]
[TimeControl "180+1"]
[EndTime "16:03:06 PST"]
[Termination "EsmeraldasAnderson03 won on time"]

1. g3 {[%clk 0:02:58.1]} 1... d5 {[%clk 0:02:57]} 2. Bg2 {[%clk 0:02:57.9]} 2...
Nf6 {[%clk 0:02:57.3]} 3. d3 {[%clk 0:02:58.2]} 3... h6 {[%clk 0:02:55.3]} 4. e4
{[%clk 0:02:58.3]} 4... Bg4 {[%clk 0:02:55.1]} 5. f3 {[%clk 0:02:57.4]} 5... Bh5
{[%clk 0:02:55.7]} 6. e5 {[%clk 0:02:57]} 6... Nfd7 {[%clk 0:02:55.1]} 7. Qe2
{[%clk 0:02:57.4]} 7... e6 {[%clk 0:02:55.1]} 8. Nh3 {[%clk 0:02:55.6]} 8... Bg6
{[%clk 0:02:54.1]} 9. Nf4 {[%clk 0:02:55.4]} 9... Bh7 {[%clk 0:02:54.8]} 10. O-O
{[%clk 0:02:49.6]} 10... Be7 {[%clk 0:02:53.1]} 11. d4 {[%clk 0:02:37.7]} 11...
O-O {[%clk 0:02:52]} 12. c3 {[%clk 0:02:37]} 12... c5 {[%clk 0:02:49.2]} 13. Be3
{[%clk 0:02:36.2]} 13... Nc6 {[%clk 0:02:46.7]} 14. Qd2 {[%clk 0:02:30.7]} 14...
cxd4 {[%clk 0:02:43.7]} 15. cxd4 {[%clk 0:02:29.8]} 15... Nb4 {[%clk 0:02:39.9]}
16. Na3 {[%clk 0:02:23.7]} 16... Rc8 {[%clk 0:02:34.9]} 17. Rfc1 {[%clk
0:02:02.9]} 17... Qb6 {[%clk 0:02:32.2]} 18. Ne2 {[%clk 0:01:58.3]} 18... Nd3
{[%clk 0:02:26]} 19. Rcb1 {[%clk 0:01:41.5]} 19... Qa6 {[%clk 0:02:06.4]} 20.
Bf1 {[%clk 0:01:24.6]} 20... b6 {[%clk 0:01:54.6]} 21. Nc1 {[%clk 0:01:19]}
21... Bb4 {[%clk 0:01:18.7]} 22. Qd1 {[%clk 0:00:55]} 22... Rxc1 {[%clk
0:00:51]} 23. Bxc1 {[%clk 0:00:37]} 23... Nxb2 {[%clk 0:00:50.6]} 24. Bxb2
{[%clk 0:00:31.2]} 24... Qa5 {[%clk 0:00:48.8]} 25. Nc2 {[%clk 0:00:27.2]} 25...
Rc8 {[%clk 0:00:48.4]} 26. Bd3 {[%clk 0:00:26.4]} 26... Bc3 {[%clk 0:00:46.2]}
27. Bxc3 {[%clk 0:00:23.9]} 27... Qxc3 {[%clk 0:00:45.5]} 28. Rb3 {[%clk
0:00:23.7]} 28... Qc7 {[%clk 0:00:38.9]} 29. Bxh7+ {[%clk 0:00:23]} 29... Kxh7
{[%clk 0:00:39.8]} 30. Qd3+ {[%clk 0:00:20.6]} 30... Kg8 {[%clk 0:00:40.5]} 31.
Ne3 {[%clk 0:00:20.5]} 31... f6 {[%clk 0:00:40.7]} 32. exf6 {[%clk 0:00:17]}
32... Nxf6 {[%clk 0:00:41.6]} 33. Ng4 {[%clk 0:00:16.4]} 33... Nd7 {[%clk
0:00:37.6]} 34. Re1 {[%clk 0:00:15.1]} 34... Nf8 {[%clk 0:00:36.5]} 35. Rb2
{[%clk 0:00:13.2]} 35... h5 {[%clk 0:00:33.4]} 36. Ne5 {[%clk 0:00:12.2]} 36...
Qe7 {[%clk 0:00:30.2]} 37. Rbe2 {[%clk 0:00:11.7]} 37... Qg5 {[%clk 0:00:28.7]}
38. f4 {[%clk 0:00:11.6]} 38... Qf6 {[%clk 0:00:28]} 39. Nf3 {[%clk 0:00:10.9]}
39... Rc4 {[%clk 0:00:26.2]} 40. Qe3 {[%clk 0:00:10.7]} 40... Qf5 {[%clk
0:00:21.8]} 41. Ne5 {[%clk 0:00:04.1]} 41... h4 {[%clk 0:00:19.9]} 42. Nxc4
{[%clk 0:00:03.1]} 42... hxg3 {[%clk 0:00:19.1]} 43. Ne5 {[%clk 0:00:01.2]}
43... g2 {[%clk 0:00:18.6]} 44. Rxg2 {[%clk 0:00:01.2]} 44... Qf6 {[%clk
0:00:12.6]} 45. Kh1 {[%clk 0:00:01.8]} 45... Ng6 {[%clk 0:00:08.6]} 46. Reg1
{[%clk 0:00:02.4]} 46... Nxf4 {[%clk 0:00:09.2]} 47. Rxg7+ {[%clk 0:00:01.7]}
47... Kf8 {[%clk 0:00:10.1]} 0-1

[Event "Late-Titled-Tuesday-Blitz-January-23-2024"]
[Site "Chess.com"]
[Date "2024.01.23"]
[Round "11"]
[White "familijatop71"]
[Black "Nf3c5"]
[Result "0-1"]
[WhiteElo "2261"]
[BlackElo "2509"]
[TimeControl "180+1"]
[EndTime "16:03:11 PST"]
[Termination "Nf3c5 won on time"]

1. e4 {[%clk 0:03:00.9]} 1... c5 {[%clk 0:02:52.8]} 2. c3 {[%clk 0:02:59.8]}
2... Qa5 {[%clk 0:02:51.3]} 3. Na3 {[%clk 0:02:56.6]} 3... e6 {[%clk 0:02:42.2]}
4. Nc4 {[%clk 0:02:52.3]} 4... Qc7 {[%clk 0:02:38.5]} 5. Nf3 {[%clk 0:02:44.7]}
5... Nc6 {[%clk 0:02:33.2]} 6. d4 {[%clk 0:02:19.3]} 6... d5 {[%clk 0:02:32.7]}
7. exd5 {[%clk 0:02:12.4]} 7... exd5 {[%clk 0:02:32.5]} 8. Nce5 {[%clk 0:02:10]}
8... cxd4 {[%clk 0:02:21.2]} 9. cxd4 {[%clk 0:02:03.3]} 9... Nf6 {[%clk
0:02:13.1]} 10. Be2 {[%clk 0:01:33.3]} 10... Bd6 {[%clk 0:02:03.2]} 11. Nxc6
{[%clk 0:01:24.2]} 11... bxc6 {[%clk 0:01:58.4]} 12. O-O {[%clk 0:01:23.7]}
12... O-O {[%clk 0:01:57.9]} 13. h3 {[%clk 0:01:22.5]} 13... a5 {[%clk
0:01:44.4]} 14. Bd3 {[%clk 0:01:21.8]} 14... Ba6 {[%clk 0:01:23.6]} 15. Re1
{[%clk 0:01:21.3]} 15... Rfb8 {[%clk 0:01:20.3]} 16. Ne5 {[%clk 0:01:15.9]}
16... Bxd3 {[%clk 0:01:14]} 17. Qxd3 {[%clk 0:01:15.3]} 17... c5 {[%clk
0:01:14.9]} 18. b3 {[%clk 0:01:03.7]} 18... a4 {[%clk 0:01:09.4]} 19. Bf4 {[%clk
0:00:59.9]} 19... axb3 {[%clk 0:00:44.7]} 20. axb3 {[%clk 0:00:59.4]} 20... Rxa1
{[%clk 0:00:40]} 21. Rxa1 {[%clk 0:00:58.9]} 21... c4 {[%clk 0:00:31.9]} 22.
bxc4 {[%clk 0:00:57.2]} 22... dxc4 {[%clk 0:00:32.3]} 23. Qf3 {[%clk 0:00:22.2]}
23... c3 {[%clk 0:00:22.6]} 24. Ra8 {[%clk 0:00:21.5]} 24... c2 {[%clk
0:00:20.3]} 25. Rxb8+ {[%clk 0:00:21.5]} 25... Qxb8 {[%clk 0:00:21.2]} 26. Bc1
{[%clk 0:00:19.5]} 26... h6 {[%clk 0:00:18.1]} 27. Nc4 {[%clk 0:00:18.5]} 27...
Bf8 {[%clk 0:00:16.5]} 28. d5 {[%clk 0:00:18]} 28... Qb1 {[%clk 0:00:16.6]} 29.
Qe3 {[%clk 0:00:17.1]} 29... Nxd5 {[%clk 0:00:16.6]} 30. Qd2 {[%clk 0:00:17.4]}
30... Nc3 {[%clk 0:00:15.4]} 31. Ne3 {[%clk 0:00:12.1]} 31... Qxc1+ {[%clk
0:00:10.7]} 32. Qxc1 {[%clk 0:00:11.6]} 32... Ne2+ {[%clk 0:00:11.6]} 33. Kh2
{[%clk 0:00:11.3]} 33... Nxc1 {[%clk 0:00:12.5]} 34. Nxc2 {[%clk 0:00:11.6]}
34... Nd3 {[%clk 0:00:13.3]} 35. f3 {[%clk 0:00:11.4]} 35... Bc5 {[%clk
0:00:12.2]} 36. g4 {[%clk 0:00:09.2]} 36... Kf8 {[%clk 0:00:11.2]} 37. Kg3
{[%clk 0:00:09]} 37... Ke7 {[%clk 0:00:11.7]} 38. f4 {[%clk 0:00:09.2]} 38...
Ke6 {[%clk 0:00:12]} 39. Na1 {[%clk 0:00:09.2]} 39... Nc1 {[%clk 0:00:11.5]} 40.
Nc2 {[%clk 0:00:08.9]} 40... Kd5 {[%clk 0:00:12.2]} 41. h4 {[%clk 0:00:08.4]}
41... Kc4 {[%clk 0:00:12.2]} 42. h5 {[%clk 0:00:08.8]} 42... Nd3 {[%clk
0:00:12.4]} 43. g5 {[%clk 0:00:05.3]} 43... Kc3 {[%clk 0:00:12.4]} 44. gxh6
{[%clk 0:00:01.6]} 44... gxh6 {[%clk 0:00:12.1]} 45. Na1 {[%clk 0:00:02.3]}
45... Kb2 {[%clk 0:00:12.4]} 46. Kg4 {[%clk 0:00:02.9]} 46... Bd4 {[%clk
0:00:09.7]} 47. Kf5 {[%clk 0:00:01.2]} 47... Kxa1 {[%clk 0:00:09.1]} 48. Ke4
{[%clk 0:00:01.8]} 48... Nxf4 {[%clk 0:00:09.1]} 0-1

[Event "Late-Titled-Tuesday-Blitz-January-23-2024"]
[Site "Chess.com"]
[Date "2024.01.23"]
[Round "11"]
[White "Grischuk"]
[Black "Firouzja2003"]
[Result "1/2-1/2"]
[WhiteElo "3092"]
[BlackElo "3155"]
[TimeControl "180+1"]
[EndTime "16:03:13 PST"]
[Termination "Game drawn by repetition"]

1. d4 {[%clk 0:03:00.9]} 1... Nf6 {[%clk 0:03:00]} 2. Bf4 {[%clk 0:03:00.9]}
2... g6 {[%clk 0:02:57.8]} 3. Nd2 {[%clk 0:03:01.1]} 3... Nh5 {[%clk 0:02:52.4]}
4. Bg5 {[%clk 0:02:53.4]} 4... h6 {[%clk 0:02:51.4]} 5. Bh4 {[%clk 0:02:53.4]}
5... Bg7 {[%clk 0:02:45.8]} 6. e3 {[%clk 0:02:52.8]} 6... c5 {[%clk 0:02:43.7]}
7. c3 {[%clk 0:02:51.5]} 7... d6 {[%clk 0:02:32.2]} 8. Be2 {[%clk 0:02:48.2]}
8... cxd4 {[%clk 0:02:25.1]} 9. cxd4 {[%clk 0:02:48.1]} 9... Nf6 {[%clk
0:02:22]} 10. Ngf3 {[%clk 0:02:44.4]} 10... O-O {[%clk 0:02:20.7]} 11. h3 {[%clk
0:02:34.9]} 11... g5 {[%clk 0:02:14.2]} 12. Bg3 {[%clk 0:02:34.7]} 12... Bf5
{[%clk 0:02:14.9]} 13. O-O {[%clk 0:02:33.3]} 13... Nbd7 {[%clk 0:02:12.2]} 14.
Rc1 {[%clk 0:02:29.4]} 14... a6 {[%clk 0:02:08.5]} 15. Re1 {[%clk 0:02:22.1]}
15... Bg6 {[%clk 0:02:06.6]} 16. Bf1 {[%clk 0:02:19.3]} 16... b5 {[%clk
0:02:01]} 17. a4 {[%clk 0:02:15.5]} 17... bxa4 {[%clk 0:01:56.1]} 18. Qxa4
{[%clk 0:02:15.4]} 18... a5 {[%clk 0:01:55.6]} 19. e4 {[%clk 0:01:46.8]} 19...
Rb8 {[%clk 0:01:46.9]} 20. e5 {[%clk 0:01:36.8]} 20... dxe5 {[%clk 0:01:40]} 21.
dxe5 {[%clk 0:01:37.1]} 21... Nh5 {[%clk 0:01:33.9]} 22. Bh2 {[%clk 0:01:32.2]}
22... Rb4 {[%clk 0:01:33.3]} 23. Qa3 {[%clk 0:01:18.3]} 23... e6 {[%clk
0:00:45]} 24. Nc4 {[%clk 0:01:13.4]} 24... Nb6 {[%clk 0:00:22.9]} 25. Nxa5
{[%clk 0:01:07.2]} 25... Ra4 {[%clk 0:00:23.2]} 26. Qc5 {[%clk 0:00:28]} 26...
Nd7 {[%clk 0:00:23.2]} 27. Nc6 {[%clk 0:00:26.9]} 27... Nxc5 {[%clk 0:00:23.5]}
28. Nxd8 {[%clk 0:00:27.5]} 28... Rxd8 {[%clk 0:00:22.3]} 29. Rxc5 {[%clk
0:00:26.9]} 29... Rb4 {[%clk 0:00:22.9]} 30. Rb5 {[%clk 0:00:22.4]} 30... Rxb5
{[%clk 0:00:20.4]} 31. Bxb5 {[%clk 0:00:23.3]} 31... Rb8 {[%clk 0:00:17.8]} 32.
Bc6 {[%clk 0:00:23.4]} 32... Rxb2 {[%clk 0:00:14.2]} 33. g4 {[%clk 0:00:23.2]}
33... Nf4 {[%clk 0:00:13.3]} 34. Bxf4 {[%clk 0:00:23.8]} 34... gxf4 {[%clk
0:00:14.2]} 35. Be4 {[%clk 0:00:24.2]} 35... Bf8 {[%clk 0:00:14.2]} 36. Bxg6
{[%clk 0:00:21.3]} 36... fxg6 {[%clk 0:00:15.1]} 37. Rc1 {[%clk 0:00:17.1]}
37... g5 {[%clk 0:00:08.7]} 38. h4 {[%clk 0:00:14.8]} 38... gxh4 {[%clk
0:00:08.3]} 39. Nxh4 {[%clk 0:00:15.7]} 39... Be7 {[%clk 0:00:08.4]} 40. Nf3
{[%clk 0:00:13.8]} 40... Kf7 {[%clk 0:00:08.5]} 41. Rc4 {[%clk 0:00:12.8]} 41...
Bg5 {[%clk 0:00:08.2]} 42. Kg2 {[%clk 0:00:12.9]} 42... Rb5 {[%clk 0:00:07.7]}
43. Rc7+ {[%clk 0:00:12.1]} 43... Kf8 {[%clk 0:00:07.6]} 44. Rc6 {[%clk
0:00:11.1]} 44... Kf7 {[%clk 0:00:07.4]} 45. Rc7+ {[%clk 0:00:08.5]} 45... Kf8
{[%clk 0:00:07.7]} 46. Rh7 {[%clk 0:00:06.5]} 46... Rd5 {[%clk 0:00:07.5]} 47.
Rb7 {[%clk 0:00:05.8]} 47... Rc5 {[%clk 0:00:07.2]} 48. Ra7 {[%clk 0:00:05.8]}
48... Rd5 {[%clk 0:00:07.4]} 49. Rb7 {[%clk 0:00:06.1]} 49... Rc5 {[%clk
0:00:07.9]} 50. Ra7 {[%clk 0:00:06.4]} 50... Rd5 {[%clk 0:00:08.4]} 51. Rb7
{[%clk 0:00:06.7]} 1/2-1/2

[Event "Late-Titled-Tuesday-Blitz-January-23-2024"]
[Site "Chess.com"]
[Date "2024.01.23"]
[Round "11"]
[White "pr1105"]
[Black "otrov-11"]
[Result "1-0"]
[WhiteElo "2367"]
[BlackElo "2498"]
[TimeControl "180+1"]
[EndTime "16:03:13 PST"]
[Termination "pr1105 won by resignation"]

1. e4 {[%clk 0:03:00.9]} 1... e6 {[%clk 0:02:59.6]} 2. d4 {[%clk 0:03:01.2]}
2... d5 {[%clk 0:02:59.7]} 3. Nc3 {[%clk 0:03:01.4]} 3... Bc5 {[%clk 0:03:00.1]}
4. dxc5 {[%clk 0:03:01.3]} 4... c6 {[%clk 0:02:47.6]} 5. Nf3 {[%clk 0:02:58.5]}
5... Nd7 {[%clk 0:02:47.7]} 6. Be3 {[%clk 0:02:58]} 6... b6 {[%clk 0:02:42.1]}
7. cxb6 {[%clk 0:02:55.9]} 7... axb6 {[%clk 0:02:43]} 8. Bd3 {[%clk 0:02:48.6]}
8... Ne7 {[%clk 0:02:42.9]} 9. O-O {[%clk 0:02:48.5]} 9... e5 {[%clk 0:02:43.4]}
10. exd5 {[%clk 0:02:46.9]} 10... cxd5 {[%clk 0:02:44.3]} 11. Bb5 {[%clk
0:02:29.7]} 11... d4 {[%clk 0:02:39.8]} 12. Bxd4 {[%clk 0:01:56.7]} 12... exd4
{[%clk 0:02:39.2]} 13. Qxd4 {[%clk 0:01:57.6]} 13... O-O {[%clk 0:02:24.1]} 14.
Rad1 {[%clk 0:01:52.6]} 14... Ra7 {[%clk 0:02:13.1]} 15. Ne5 {[%clk 0:01:46.4]}
15... Qc7 {[%clk 0:01:56.8]} 16. Nxd7 {[%clk 0:01:40.4]} 16... Rd8 {[%clk
0:01:57.4]} 17. Nf6+ {[%clk 0:01:39.3]} 17... gxf6 {[%clk 0:01:52.7]} 18. Qxd8+
{[%clk 0:01:39.6]} 18... Kg7 {[%clk 0:01:51]} 19. Rfe1 {[%clk 0:01:35.3]} 19...
Be6 {[%clk 0:01:43.7]} 20. Qxc7 {[%clk 0:01:33.3]} 20... Rxc7 {[%clk 0:01:44.6]}
21. a3 {[%clk 0:01:30.5]} 21... Rc5 {[%clk 0:01:44.1]} 22. Bd3 {[%clk
0:01:29.1]} 22... h5 {[%clk 0:01:39.9]} 23. f3 {[%clk 0:01:26.6]} 23... h4
{[%clk 0:01:39.8]} 24. h3 {[%clk 0:01:26.9]} 24... Ra5 {[%clk 0:01:35.8]} 25.
Kf2 {[%clk 0:01:26.9]} 25... Nc6 {[%clk 0:01:36.1]} 26. Be4 {[%clk 0:01:23.3]}
26... Ne5 {[%clk 0:01:35.7]} 27. Bd5 {[%clk 0:01:19.2]} 27... Bf5 {[%clk
0:01:35.4]} 28. Rd2 {[%clk 0:01:14.8]} 28... Rc5 {[%clk 0:01:33.4]} 29. Ne4
{[%clk 0:01:12.9]} 29... Rc7 {[%clk 0:01:31.4]} 30. c4 {[%clk 0:01:10.6]} 30...
Ra7 {[%clk 0:01:26.2]} 31. c5 {[%clk 0:01:05.8]} 31... bxc5 {[%clk 0:01:27.1]}
32. Nxc5 {[%clk 0:01:04.7]} 32... Ra5 {[%clk 0:01:27.3]} 33. Ne4 {[%clk
0:01:05]} 33... Bd7 {[%clk 0:01:20.5]} 34. Rb1 {[%clk 0:01:03.2]} 34... Bb5
{[%clk 0:01:20]} 35. Ke3 {[%clk 0:00:58.8]} 35... Ba6 {[%clk 0:01:18.3]} 36. Nc3
{[%clk 0:00:58.3]} 36... Bc8 {[%clk 0:01:15.2]} 37. f4 {[%clk 0:00:57.6]} 37...
Nd7 {[%clk 0:01:10.6]} 38. a4 {[%clk 0:00:55.9]} 38... Rc5 {[%clk 0:01:06]} 39.
Kd4 {[%clk 0:00:52.6]} 39... Rc7 {[%clk 0:01:06.2]} 40. b4 {[%clk 0:00:52.5]}
40... Nf8 {[%clk 0:00:45.6]} 41. a5 {[%clk 0:00:50.9]} 41... Ng6 {[%clk
0:00:46]} 42. Rf2 {[%clk 0:00:48.7]} 42... Ne7 {[%clk 0:00:38.2]} 43. b5 {[%clk
0:00:42]} 43... Nf5+ {[%clk 0:00:38.1]} 44. Kd3 {[%clk 0:00:41.1]} 44... Ng3
{[%clk 0:00:37.8]} 45. b6 {[%clk 0:00:40.5]} 45... Bf5+ {[%clk 0:00:38.5]} 46.
Kd4 {[%clk 0:00:39.4]} 46... Rd7 {[%clk 0:00:39]} 47. Rbb2 {[%clk 0:00:37.1]}
47... Be6 {[%clk 0:00:38.9]} 48. b7 {[%clk 0:00:36.9]} 48... Nf5+ {[%clk
0:00:38.9]} 49. Kc4 {[%clk 0:00:29.4]} 49... Ne3+ {[%clk 0:00:38.1]} 50. Kd4
{[%clk 0:00:29.8]} 50... Nxd5 {[%clk 0:00:37.7]} 51. Nxd5 {[%clk 0:00:30]} 51...
Rxd5+ {[%clk 0:00:35.8]} 52. Ke3 {[%clk 0:00:29.6]} 52... Rxa5 {[%clk
0:00:35.2]} 53. b8=Q {[%clk 0:00:28.6]} 53... Ra3+ {[%clk 0:00:36]} 54. Ke2
{[%clk 0:00:28]} 54... Bf5 {[%clk 0:00:35.5]} 55. Qb5 {[%clk 0:00:26.7]} 55...
Kg6 {[%clk 0:00:33.2]} 56. Rf3 {[%clk 0:00:26.3]} 56... Ra1 {[%clk 0:00:31.4]}
57. Re3 {[%clk 0:00:23.5]} 57... Rc1 {[%clk 0:00:27.7]} 58. Rd2 {[%clk
0:00:22.6]} 58... Rb1 {[%clk 0:00:24.1]} 59. Qxb1 {[%clk 0:00:20.8]} 59... Bxb1
{[%clk 0:00:25]} 60. Kf2 {[%clk 0:00:21.4]} 60... Bf5 {[%clk 0:00:24.9]} 61. Rd8
{[%clk 0:00:21.7]} 61... Kg7 {[%clk 0:00:25.3]} 62. Ree8 {[%clk 0:00:21.9]}
62... Bh7 {[%clk 0:00:20.3]} 63. Rh8 {[%clk 0:00:21.3]} 1-0

[Event "Late-Titled-Tuesday-Blitz-January-23-2024"]
[Site "Chess.com"]
[Date "2024.01.23"]
[Round "11"]
[White "ozates"]
[Black "tptagain"]
[Result "0-1"]
[WhiteElo "2650"]
[BlackElo "2948"]
[TimeControl "180+1"]
[EndTime "16:03:17 PST"]
[Termination "tptagain won by resignation"]

1. e4 {[%clk 0:03:00.9]} 1... c5 {[%clk 0:03:00]} 2. Nf3 {[%clk 0:03:00.4]} 2...
Nc6 {[%clk 0:03:00.6]} 3. Bb5 {[%clk 0:03:00.5]} 3... e6 {[%clk 0:03:00.5]} 4.
O-O {[%clk 0:02:59.6]} 4... Nge7 {[%clk 0:03:00.7]} 5. d4 {[%clk 0:03:00]} 5...
cxd4 {[%clk 0:03:00.6]} 6. Nxd4 {[%clk 0:03:00.9]} 6... Qb6 {[%clk 0:03:00.6]}
7. Nxc6 {[%clk 0:03:00]} 7... bxc6 {[%clk 0:03:00.8]} 8. Bd3 {[%clk 0:02:56.7]}
8... Ng6 {[%clk 0:03:00.5]} 9. Kh1 {[%clk 0:02:55.7]} 9... Be7 {[%clk
0:02:47.5]} 10. f4 {[%clk 0:02:55.7]} 10... O-O {[%clk 0:02:46.8]} 11. Nc3
{[%clk 0:02:49.8]} 11... Ba6 {[%clk 0:02:41.2]} 12. Qf3 {[%clk 0:02:43.3]} 12...
Bxd3 {[%clk 0:02:36.6]} 13. Qxd3 {[%clk 0:02:34.4]} 13... d5 {[%clk 0:02:32.6]}
14. f5 {[%clk 0:02:28.3]} 14... dxe4 {[%clk 0:02:17.6]} 15. Qxe4 {[%clk
0:02:25.2]} 15... exf5 {[%clk 0:02:14.6]} 16. Qxf5 {[%clk 0:02:25.4]} 16... Rad8
{[%clk 0:02:08.8]} 17. Rb1 {[%clk 0:02:17.5]} 17... Qa6 {[%clk 0:02:02.4]} 18.
Be3 {[%clk 0:02:06.4]} 18... Bb4 {[%clk 0:01:41]} 19. a3 {[%clk 0:01:38.4]}
19... Bxc3 {[%clk 0:01:40.8]} 20. bxc3 {[%clk 0:01:39.3]} 20... Qc4 {[%clk
0:01:40.3]} 21. Bd4 {[%clk 0:01:30.3]} 21... Rd5 {[%clk 0:01:33.4]} 22. Qf3
{[%clk 0:01:17.8]} 22... c5 {[%clk 0:01:31.1]} 23. Bg1 {[%clk 0:01:11.1]} 23...
Rd2 {[%clk 0:01:15.7]} 24. Rb7 {[%clk 0:01:08.7]} 24... Ne5 {[%clk 0:01:09.5]}
25. Qf5 {[%clk 0:01:03.8]} 25... Qd5 {[%clk 0:01:04.9]} 26. Rf2 {[%clk
0:00:59.9]} 26... Rxf2 {[%clk 0:01:02.6]} 27. Bxf2 {[%clk 0:01:00.8]} 27... Qxb7
{[%clk 0:01:00.5]} 28. Qxe5 {[%clk 0:01:01.3]} 28... Qb1+ {[%clk 0:00:51.1]} 29.
Bg1 {[%clk 0:01:00.6]} 29... h6 {[%clk 0:00:45.9]} 30. Qxc5 {[%clk 0:01:00.1]}
30... a6 {[%clk 0:00:44.5]} 31. h3 {[%clk 0:00:55.7]} 31... Qxc2 {[%clk
0:00:43.4]} 32. Kh2 {[%clk 0:00:55.5]} 32... Re8 {[%clk 0:00:38.4]} 33. Bd4
{[%clk 0:00:53.9]} 33... Qg6 {[%clk 0:00:30.3]} 34. Qd5 {[%clk 0:00:48.5]} 34...
Re2 {[%clk 0:00:27.9]} 35. a4 {[%clk 0:00:31.9]} 35... Qe4 {[%clk 0:00:21.3]}
36. Qxe4 {[%clk 0:00:18.1]} 36... Rxe4 {[%clk 0:00:22.2]} 37. Kg3 {[%clk
0:00:18.8]} 37... f5 {[%clk 0:00:22.5]} 38. Kf3 {[%clk 0:00:19.1]} 38... Kf7
{[%clk 0:00:23]} 39. g4 {[%clk 0:00:19.5]} 39... g6 {[%clk 0:00:23.6]} 40. gxf5
{[%clk 0:00:19.7]} 40... gxf5 {[%clk 0:00:24.5]} 41. a5 {[%clk 0:00:19.4]} 41...
h5 {[%clk 0:00:24.7]} 42. Kg3 {[%clk 0:00:14.6]} 42... Ke6 {[%clk 0:00:24.3]}
43. Kf3 {[%clk 0:00:15.3]} 43... Kd5 {[%clk 0:00:22.7]} 44. Kg3 {[%clk
0:00:15.7]} 44... Ke6 {[%clk 0:00:22.5]} 45. Kf3 {[%clk 0:00:15.8]} 45... Re1
{[%clk 0:00:23]} 46. Kf4 {[%clk 0:00:15.4]} 46... Rh1 {[%clk 0:00:22.3]} 47. Kg3
{[%clk 0:00:14.9]} 47... Rd1 {[%clk 0:00:21.3]} 48. Kh4 {[%clk 0:00:14.7]} 48...
f4 {[%clk 0:00:21.4]} 49. Bb6 {[%clk 0:00:09.5]} 49... Kf5 {[%clk 0:00:20.6]}
50. c4 {[%clk 0:00:09.5]} 50... Rc1 {[%clk 0:00:19.8]} 51. c5 {[%clk 0:00:09.4]}
51... f3 {[%clk 0:00:20.1]} 52. Kg3 {[%clk 0:00:09.9]} 52... Ke4 {[%clk
0:00:20.4]} 53. Kf2 {[%clk 0:00:09.3]} 53... Rc2+ {[%clk 0:00:20.6]} 54. Kf1
{[%clk 0:00:09.8]} 54... Kf4 {[%clk 0:00:19.7]} 55. Ba7 {[%clk 0:00:05]} 55...
Kg3 {[%clk 0:00:19.3]} 56. Bb8+ {[%clk 0:00:05.2]} 56... Kxh3 {[%clk 0:00:19.7]}
57. Bd6 {[%clk 0:00:05.1]} 57... Kg4 {[%clk 0:00:19.8]} 0-1

[Event "Late-Titled-Tuesday-Blitz-January-23-2024"]
[Site "Chess.com"]
[Date "2024.01.23"]
[Round "11"]
[White "Statham_01"]
[Black "krzyzan94"]
[Result "0-1"]
[WhiteElo "2565"]
[BlackElo "2770"]
[TimeControl "180+1"]
[EndTime "16:03:29 PST"]
[Termination "krzyzan94 won by checkmate"]

1. e4 {[%clk 0:03:00.9]} 1... e5 {[%clk 0:02:53.1]} 2. Nf3 {[%clk 0:03:00.9]}
2... Nc6 {[%clk 0:02:52.5]} 3. c3 {[%clk 0:03:01.2]} 3... Qe7 {[%clk 0:02:49.2]}
4. Bb5 {[%clk 0:02:54.3]} 4... d6 {[%clk 0:02:46.5]} 5. d4 {[%clk 0:02:46.8]}
5... Bd7 {[%clk 0:02:45.7]} 6. O-O {[%clk 0:02:43.8]} 6... Nf6 {[%clk
0:02:42.2]} 7. Bg5 {[%clk 0:02:39.4]} 7... h6 {[%clk 0:02:37.1]} 8. Bxf6 {[%clk
0:02:30.7]} 8... Qxf6 {[%clk 0:02:35.3]} 9. Na3 {[%clk 0:02:17.8]} 9... Be7
{[%clk 0:02:11.1]} 10. dxe5 {[%clk 0:01:57.7]} 10... dxe5 {[%clk 0:02:06.6]} 11.
Nc4 {[%clk 0:01:57.8]} 11... Rd8 {[%clk 0:01:42.8]} 12. Qe2 {[%clk 0:01:42.8]}
12... Bd6 {[%clk 0:01:32]} 13. Rad1 {[%clk 0:01:29.9]} 13... O-O {[%clk
0:01:31.4]} 14. Nxd6 {[%clk 0:01:13.8]} 14... cxd6 {[%clk 0:01:31]} 15. Nd2
{[%clk 0:01:09]} 15... Be6 {[%clk 0:01:08.6]} 16. Nc4 {[%clk 0:00:59.9]} 16...
Qg6 {[%clk 0:00:43.4]} 17. f3 {[%clk 0:00:54.3]} 17... Bxc4 {[%clk 0:00:25.2]}
18. Bxc4 {[%clk 0:00:48.8]} 18... Kh8 {[%clk 0:00:25.3]} 19. Bd5 {[%clk
0:00:41.5]} 19... f5 {[%clk 0:00:21.6]} 20. Qb5 {[%clk 0:00:32.2]} 20... Ne7
{[%clk 0:00:20.8]} 21. Qxb7 {[%clk 0:00:28.8]} 21... Nxd5 {[%clk 0:00:19.2]} 22.
Qxd5 {[%clk 0:00:29.7]} 22... Qf6 {[%clk 0:00:16.9]} 23. b3 {[%clk 0:00:23]}
23... Rd7 {[%clk 0:00:16.7]} 24. c4 {[%clk 0:00:22.5]} 24... Rfd8 {[%clk
0:00:17]} 25. exf5 {[%clk 0:00:20.2]} 25... Qxf5 {[%clk 0:00:17.2]} 26. Qe4
{[%clk 0:00:20.9]} 26... Qg5 {[%clk 0:00:16.5]} 27. Rd5 {[%clk 0:00:20]} 27...
Rf8 {[%clk 0:00:15.4]} 28. Qg4 {[%clk 0:00:16.1]} 28... Qe3+ {[%clk 0:00:15.1]}
29. Kh1 {[%clk 0:00:16.6]} 29... Rdf7 {[%clk 0:00:12.7]} 30. Rxd6 {[%clk
0:00:10.1]} 30... e4 {[%clk 0:00:12.7]} 31. Re6 {[%clk 0:00:07.1]} 31... Qd3
{[%clk 0:00:12.9]} 32. Rg1 {[%clk 0:00:06.6]} 32... exf3 {[%clk 0:00:12.8]} 33.
gxf3 {[%clk 0:00:06.9]} 33... Qc3 {[%clk 0:00:09.1]} 34. f4 {[%clk 0:00:03.5]}
34... Rxf4 {[%clk 0:00:08.4]} 35. Qg3 {[%clk 0:00:03.4]} 35... Rf3 {[%clk
0:00:07.9]} 36. Qg4 {[%clk 0:00:03.6]} 36... Rf1 {[%clk 0:00:07.2]} 37. Re2
{[%clk 0:00:02.3]} 37... Rxg1+ {[%clk 0:00:06.4]} 38. Kxg1 {[%clk 0:00:03.2]}
38... Qc1+ {[%clk 0:00:06.2]} 39. Kg2 {[%clk 0:00:03.6]} 39... Qf1+ {[%clk
0:00:06.6]} 40. Kg3 {[%clk 0:00:03.8]} 40... Qg1+ {[%clk 0:00:06.2]} 41. Kh3
{[%clk 0:00:02.9]} 41... Qf1+ {[%clk 0:00:04.8]} 42. Rg2 {[%clk 0:00:03.1]}
42... Rf3+ {[%clk 0:00:04.3]} 43. Kh4 {[%clk 0:00:02.8]} 43... Rf7 {[%clk
0:00:03]} 44. Qc8+ {[%clk 0:00:02.7]} 44... Kh7 {[%clk 0:00:03.4]} 45. Qg4
{[%clk 0:00:03]} 45... g5+ {[%clk 0:00:02.8]} 46. Kh5 {[%clk 0:00:02.5]} 46...
Qe1 {[%clk 0:00:02.3]} 47. Rg3 {[%clk 0:00:01.9]} 47... Rf4 {[%clk 0:00:01.8]}
48. Qd7+ {[%clk 0:00:02]} 48... Kg8 {[%clk 0:00:02]} 49. Kg6 {[%clk 0:00:01.8]}
49... Qe4+ {[%clk 0:00:01.6]} 50. Kxh6 {[%clk 0:00:01.8]} 50... Rh4+ {[%clk
0:00:01.9]} 51. Kxg5 {[%clk 0:00:02.1]} 51... Qf4+ {[%clk 0:00:02.5]} 52. Kg6
{[%clk 0:00:02.3]} 52... Rh6# {[%clk 0:00:03.4]} 0-1